bitfinex/quotes_ETHUSD_20250913
["timestamp","ask_amount","ask_price","bid_price","bid_amount"]
[1757770749102,2.12353651,4713.6,4712.8,0.2874]
[1757770749103,2.12165869,4713.3,4712.8,0.2874]
[1757770749271,2.12161376,4713.4,4712.8,0.2874]
[1757770749471,0.002,4713.6,4712.9,0.9489]
[1757770749798,0.002,4713.6,4713.0,0.4674]
[1757770749983,0.1056,4713.0,4712.9,0.4815]
[1757770750185,0.1056,4713.0,4712.9,1.2363]
[1757770750497,0.002,4713.6,4712.9,1.2363]
[1757770750665,0.002,4713.6,4713.0,0.9489]
[1757770751063,0.002,4713.6,4713.5,0.2874]
[1757770751369,0.21454232,4713.6,4713.5,0.2874]
[1757770751810,0.002,4713.6,4713.5,0.2874]
[1757770752597,0.002,4713.6,4713.1,0.4815]
[1757770752799,0.002,4713.6,4712.9,0.4674]
[1757770752993,0.1056,4712.9,4712.7,0.4815]
[1757770753176,0.1056,4712.9,4712.8,1.2363]
[1757770755807,0.1056,4712.9,4712.8,4.7803]
[1757770758697,0.1056,4712.9,4712.8,4.7793]
[1757770760545,0.1056,4712.9,4712.8,8.43069]
[1757770760707,0.1056,4713.3,4712.8,5.43069]
[1757770761033,0.1056,4713.3,4712.9,0.9001]
[1757770761419,0.1056,4713.3,4713.2,0.2882]
[1757770761620,0.1056,4713.3,4712.9,0.1056]
[1757770761931,0.1056,4713.3,4712.9,0.4456]
[1757770762229,0.4951,4713.2,4713.0,3.542]
[1757770762436,0.2939,4713.1,4713.0,3.542]
[1757770763136,0.9327,4713.5,4713.0,3.542]
[1757770763333,0.002,4713.6,4713.4,0.2882]
[1757770764132,0.002,4713.6,4713.5,6.9985]
[1757770764536,0.002,4713.6,4713.5,6.8322]
[1757770764742,0.002,4713.6,4713.5,7.2778]
[1757770765038,0.002,4713.6,4713.5,7.7323]
[1757770766843,0.002,4713.6,4713.5,7.2778]
[1757770767951,0.002,4713.6,4713.5,7.7323]
[1757770769957,0.002,4713.6,4713.5,6.8322]
[1757770770747,0.002,4713.6,4713.5,6.544]
[1757770771334,0.2959,4713.6,4713.5,3.0]
[1757770771522,0.2959,4713.6,4713.5,6.541]
[1757770771918,0.2959,4713.6,4713.5,3.0]
[1757770772121,1.35166,4713.6,4713.5,6.541]
[1757770773072,1.35166,4713.6,4712.8,0.4386]
[1757770773073,0.1056,4713.5,4712.8,0.001]
[1757770773232,1.35166,4713.6,4712.9,3.542]
[1757770773426,0.2939,4713.0,4712.9,3.542]
[1757770773625,1.2266,4713.0,4712.9,3.542]
[1757770774450,0.1056,4712.9,4712.8,0.001]
[1757770774666,0.1056,4712.9,4712.8,6.542]
[1757770774866,0.3995,4712.9,4712.8,6.542]
[1757770775989,0.1056,4712.9,4712.8,6.8302]
[1757770776310,0.1056,4712.9,4712.8,7.2758]
[1757770776589,0.1056,4712.9,4712.8,7.7303]
[1757770777964,0.1056,4712.9,4712.8,7.7313]
[1757770778760,0.1056,4712.9,4712.8,7.2768]
[1757770778960,0.1056,4712.9,4712.8,6.8312]
[1757770780394,0.1056,4712.9,4712.8,6.8292]
[1757770780963,0.1056,4712.9,4712.8,7.2748]
[1757770781581,0.1056,4712.9,4712.8,7.7293]
[1757770782664,0.1056,4712.9,4712.8,8.66513]
[1757770787607,0.002,4713.6,4712.8,8.66513]
[1757770787608,0.002,4713.6,4712.9,3.0]
[1757770787807,0.1056,4713.2,4713.1,3.0]
[1757770788007,0.1056,4713.2,4713.1,4.2326]
[1757770788174,0.1056,4713.2,4713.1,4.25381745]
[1757770788507,0.1056,4713.2,4713.1,5.1266822]
[1757770788705,0.1056,4713.2,4713.1,5.10546475]
[1757770788894,0.1056,4713.5,4713.1,5.10546475]
[1757770789099,0.1056,4713.5,4713.2,4.495617]
[1757770789277,0.1056,4713.5,4713.2,4.4744]
[1757770789481,0.1056,4713.5,4713.4,0.2962]
[1757770789681,0.002,4713.6,4713.4,7.71122813]
[1757770789877,0.002,4713.6,4713.5,5.58461565]
[1757770790212,0.002,4713.6,4713.5,5.5634]
[1757770790420,0.002,4713.6,4713.5,5.8587]
[1757770791117,0.002,4713.6,4713.5,5.3704]
[1757770792010,0.002,4713.6,4713.5,1.627]
[1757770792310,0.309,4713.6,4713.5,4.627]
[1757770792999,0.8086,4713.6,4713.5,5.164]
[1757770793202,1.2785,4713.6,4713.5,5.164]
[1757770793584,1.2785,4713.6,4713.5,8.164]
[1757770793787,0.002,4713.6,4713.5,8.4593]
[1757770794323,0.002,4713.6,4713.5,8.164]
[1757770794493,0.002,4713.6,4713.5,4.627]
[1757770794697,0.002,4713.6,4713.5,8.164]
[1757770795098,0.002,4713.6,4713.5,8.4593]
[1757770797123,0.002,4713.6,4713.5,8.164]
[1757770797421,0.002,4713.6,4713.5,4.627]
[1757770797612,0.002,4713.6,4713.5,8.163]
[1757770799516,0.002,4713.6,4713.5,8.4583]
[1757770800731,0.002,4713.6,4713.5,8.9554]
[1757770801043,0.002,4713.6,4713.5,9.3939]
[1757770801330,0.002,4713.6,4713.5,8.4583]
[1757770802889,0.002,4713.6,4713.5,8.8968]
[1757770804295,0.002,4713.6,4713.5,8.4583]
[1757770804519,1.2785,4713.6,4713.5,8.163]
[1757770805527,1.2785,4713.6,4713.5,4.627]
[1757770805728,0.8086,4713.6,4713.5,4.627]
[1757770805928,0.8086,4713.6,4712.8,0.001]
[1757770805929,1.41711,4713.6,4712.8,0.001]
[1757770806142,1.41711,4713.6,4713.0,3.0]
[1757770806349,0.9695,4713.5,4713.2,3.0]
[1757770806548,0.9695,4713.5,4713.3,3.535]
[1757770806744,1.418411,4713.4,4713.3,3.0]
[1757770807026,1.418411,4713.4,4713.2,3.535]
[1757770807226,0.9695,4713.3,4713.2,3.535]
[1757770807460,1.2765,4713.3,4713.2,3.535]
[1757770811256,1.2765,4713.3,4713.0,3.535]
[1757770811455,1.401214,4713.2,4713.0,3.535]
[1757770811655,1.2765,4713.1,4712.8,0.001]
[1757770811853,2.12180832,4713.0,4712.8,0.001]
[1757770812158,2.12183581,4712.9,4712.8,0.001]
[1757770812356,3.39833581,4712.9,4712.8,0.001]
[1757770812555,4.05717738,4712.9,4712.8,0.001]
[1757770813022,1.93534157,4712.9,4712.8,0.001]
[1757770813224,4.84917738,4712.9,4712.8,0.001]
[1757770816232,4.93406819,4712.9,4712.8,0.001]
[1757770828408,8.80918819,4712.9,4712.8,0.001]
[1757770828708,4.93406819,4712.9,4712.8,0.001]
[1757770829087,8.46706819,4712.9,4712.8,0.001]
[1757770831530,4.46416819,4712.9,4712.8,0.001]
[1757770831690,7.99816819,4712.9,4712.8,0.001]
[1757770831895,8.43256819,4712.9,4712.8,0.001]
[1757770834349,3.96456819,4712.9,4712.8,0.001]
[1757770834620,7.49956819,4712.9,4712.8,0.001]
[1757770835537,8.61752918,4712.9,4712.8,0.001]
[1757770836621,8.61752918,4712.9,4712.2,0.41082594]
[1757770836622,2.12210597,4712.3,4712.2,0.41082594]
[1757770836816,6.08152047,4712.3,4712.2,0.41082594]
[1757770837009,6.08152047,4712.3,4712.2,0.71752594]
[1757770838003,2.12219604,4712.1,4712.0,0.001]
[1757770838412,2.12219604,4712.1,4712.0,0.3077]
[1757770839122,6.37639604,4712.1,4712.0,0.001]
[1757770839290,7.68296769,4712.1,4712.0,0.001]
[1757770839789,7.19676769,4712.1,4712.0,0.001]
[1757770840437,6.76236769,4712.1,4712.0,0.001]
[1757770840811,6.47656769,4712.1,4712.0,0.3077]
[1757770841294,6.76236769,4712.1,4712.0,0.001]
[1757770842407,7.68296769,4712.1,4712.0,0.001]
[1757770843623,6.76236769,4712.1,4712.0,0.001]
[1757770844833,7.19676769,4712.1,4712.0,0.001]
[1757770845034,7.76786769,4712.1,4712.0,0.001]
[1757770848939,0.0849,4712.1,4712.0,0.7774]
[1757770849116,0.19770402,4713.2,4712.0,1.2208]
[1757770849322,0.4688,4713.4,4712.1,0.9259]
[1757770849323,2.12192692,4712.7,4712.1,0.9259]
[1757770849541,3.535,4712.7,4712.6,0.2939]
[1757770849743,3.535,4712.8,4712.6,0.7373]
[1757770850937,3.535,4712.8,4712.6,0.7411]
[1757770851111,5.65688641,4712.8,4712.6,0.7411]
[1757770851307,3.535,4712.8,4712.6,0.7411]
[1757770851511,5.65688249,4712.8,4712.6,0.7411]
[1757770851748,6.43474593,4712.8,4712.6,0.7411]
[1757770852134,4.31286344,4712.8,4712.6,0.7411]
[1757770852524,6.43475228,4712.8,4712.6,0.7411]
[1757770852853,2.12192585,4712.7,4712.6,0.7411]
[1757770853032,4.31286344,4712.8,4712.6,0.7411]
[1757770853231,3.535,4712.8,4712.6,0.7411]
[1757770853419,3.535,4712.8,4712.7,0.4846]
[1757770853627,3.535,4712.8,4712.7,1.2177]
[1757770854241,5.65688083,4712.8,4712.7,1.2177]
[1757770854831,5.65688083,4712.8,4712.7,0.7331]
[1757770855149,6.45451492,4712.8,4712.7,0.2859]
[1757770855455,6.45651492,4712.8,4712.7,0.2859]
[1757770855617,6.45651492,4712.8,4712.7,0.7331]
[1757770856548,0.79963409,4712.8,4712.7,0.7331]
[1757770856954,2.92151492,4712.8,4712.7,0.7331]
[1757770857167,0.79963409,4712.8,4712.7,0.7331]
[1757770857963,2.92151492,4712.8,4712.7,0.7331]
[1757770858976,0.79963409,4712.8,4712.7,0.7331]
[1757770859135,0.002,4712.8,4712.7,0.7331]
[1757770859665,2.12388083,4712.8,4712.7,0.7331]
[1757770860035,0.002,4712.8,4712.7,0.7331]
[1757770860234,2.12388083,4712.8,4712.7,0.7331]
[1757770860467,0.002,4712.8,4712.7,0.7331]
[1757770860871,2.12388083,4712.8,4712.7,0.7331]
[1757770861164,2.71454391,4712.8,4712.7,0.2859]
[1757770863347,0.59266308,4712.8,4712.7,0.2859]
[1757770863668,2.71454391,4712.8,4712.7,0.2859]
[1757770863868,0.59266308,4712.8,4712.7,0.2859]
[1757770864568,2.71454391,4712.8,4712.7,0.2859]
[1757770865464,0.59266308,4712.8,4712.7,0.2859]
[1757770865775,2.71454391,4712.8,4712.7,0.2859]
[1757770866437,0.59266308,4712.8,4712.7,0.2859]
[1757770866665,2.71454391,4712.8,4712.7,0.2859]
[1757770867770,2.12198367,4712.6,4712.0,0.001]
[1757770867946,0.1056,4712.3,4712.0,0.4482]
[1757770868320,3.53,4712.7,4712.2,0.2859]
[1757770868445,3.53,4712.7,4712.3,0.9318]
[1757770868644,3.53,4712.7,4712.0,0.001]
[1757770868645,3.53,4712.7,4712.6,0.2859]
[1757770868844,3.53,4712.7,4712.6,1.2177]
[1757770869163,0.002,4712.8,4712.6,1.2177]
[1757770869476,0.002,4712.8,4712.7,0.9318]
[1757770870181,0.002,4712.8,4712.7,1.2177]
[1757770870679,0.002,4712.8,4712.7,0.7331]
[1757770871252,0.002,4712.8,4712.7,0.2859]
[1757770872177,0.002,4712.8,4712.4,0.4846]
[1757770872490,0.1056,4712.7,4712.6,0.9318]
[1757770872648,0.002,4712.8,4712.6,0.7705]
[1757770872849,0.002,4712.8,4712.6,1.2177]
[1757770873154,0.002,4712.8,4712.6,0.7331]
[1757770875000,0.002,4712.8,4712.6,0.2859]
[1757770876597,2.12388539,4712.8,4712.6,0.2859]
[1757770876887,0.002,4712.8,4712.6,0.2859]
[1757770877187,0.002,4712.8,4712.7,0.4567]
[1757770877595,0.002,4712.8,4712.7,0.753]
[1757770877792,0.002,4712.8,4712.7,0.2963]
[1757770883624,0.002,4712.8,4712.3,0.4665]
[1757770884007,0.002,4712.8,4712.4,0.4567]
[1757770884410,0.002,4712.8,4712.7,0.2963]
[1757770884926,0.002,4712.8,4712.7,1.2195]
[1757770888700,0.002,4712.8,4712.7,0.753]
[1757770891338,0.002,4712.8,4712.7,0.2963]
[1757770891641,0.002,4712.8,4712.7,0.753]
[1757770892108,0.002,4712.8,4712.7,0.2963]
[1757770892636,0.002,4712.8,4712.7,1.2195]
[1757770894040,0.002,4712.8,4712.7,0.753]
[1757770894627,0.002,4712.8,4712.7,0.2963]
[1757770894949,2.12388083,4712.8,4712.7,0.2963]
[1757770895645,2.12211085,4712.3,4712.1,0.001]
[1757770895843,2.12215101,4712.2,4712.1,0.001]
[1757770896045,3.32715101,4712.2,4712.1,0.001]
[1757770896243,3.52482379,4712.2,4712.1,0.001]
[1757770896746,3.60972235,4712.2,4712.1,0.001]
[1757770897043,7.71090184,4712.2,4712.1,0.001]
[1757770897821,7.51322906,4712.2,4712.1,0.001]
[1757770900649,8.30522906,4712.2,4712.1,0.001]
[1757770900828,8.50255828,4712.2,4712.1,0.001]
[1757770905363,8.51255828,4712.2,4712.1,0.001]
[1757770907153,8.31522906,4712.2,4712.1,0.001]
[1757770911082,8.31722906,4712.2,4712.1,0.001]
[1757770914393,4.78922906,4712.2,4712.1,0.001]
[1757770914581,7.41722906,4712.2,4712.1,0.001]
[1757770915987,7.41722906,4712.2,4712.1,0.2989]
[1757770915988,2.79222906,4712.2,4712.1,0.2989]
[1757770916190,6.32022906,4712.2,4712.1,0.7611]
[1757770916355,6.32022906,4712.2,4712.1,0.2989]
[1757770916752,6.32022906,4712.2,4712.1,0.001]
[1757770917055,7.10272906,4712.2,4712.1,0.001]
[1757770917450,7.57972906,4712.2,4712.1,0.001]
[1757770917664,8.37172906,4712.2,4712.1,0.001]
[1757770919100,8.37172906,4712.2,4712.0,0.001]
[1757770919101,2.12242125,4711.6,4710.5,1.628]
[1757770919304,2.12242125,4711.6,4710.6,0.2688]
[1757770919305,3.55923113,4711.5,4710.6,0.2688]
[1757770919600,5.68170001,4711.5,4711.4,0.2979]
[1757770919888,3.538,4711.5,4711.4,0.2979]
[1757770920060,3.55923113,4711.5,4711.4,0.2979]
[1757770920661,0.03123113,4711.5,4711.4,0.2979]
[1757770920965,3.55923113,4711.5,4711.4,0.2979]
[1757770921155,3.55923113,4711.5,4710.6,0.2688]
[1757770921361,5.68171535,4711.5,4711.4,0.2979]
[1757770921682,3.538,4711.5,4711.4,0.7173]
[1757770921863,3.55923113,4711.5,4711.4,0.7173]
[1757770922063,0.03123113,4711.5,4711.4,0.7173]
[1757770925671,0.03123113,4711.5,4711.4,0.2979]
[1757770927705,0.03123113,4711.5,4711.4,0.7173]
[1757770928000,0.01,4711.5,4711.4,0.7173]
[1757770928164,0.01,4711.5,4711.4,0.2979]
[1757770928370,2.1324663,4711.5,4711.4,0.2979]
[1757770928762,0.01,4711.5,4711.4,0.2979]
[1757770928968,2.1324663,4711.5,4711.4,0.2979]
[1757770929192,0.01,4711.5,4711.4,0.2979]
[1757770929393,0.03123113,4711.5,4711.4,0.2979]
[1757770930069,2.15369743,4711.5,4711.4,0.2979]
[1757770930371,0.03123113,4711.5,4711.4,0.2979]
[1757770935381,2.12251135,4711.4,4711.3,0.001]
[1757770935937,2.15370691,4711.5,4711.3,0.001]
[1757770936606,0.03123113,4711.5,4711.3,0.001]
[1757770936778,2.15369869,4711.5,4711.3,0.001]
[1757770938177,2.12251135,4711.4,4711.3,0.001]
[1757770938377,2.15370088,4711.5,4711.3,0.001]
[1757770938809,2.12251135,4711.4,4711.3,0.001]
[1757770938988,0.03123113,4711.5,4711.4,0.3087]
[1757770939188,2.22811135,4711.4,4711.3,0.001]
[1757770939381,0.1056,4711.4,4711.3,0.001]
[1757770940295,2.54241135,4711.4,4711.3,0.001]
[1757770940625,0.4199,4711.4,4711.3,0.001]
[1757770940797,0.1156,4711.4,4711.3,0.001]
[1757770941323,2.23811135,4711.4,4711.3,0.001]
[1757770941519,0.1156,4711.4,4711.3,0.3097]
[1757770942105,0.13683113,4711.4,4711.3,0.3097]
[1757770946320,0.13683113,4711.4,4711.3,0.7291]
[1757770946525,0.1156,4711.4,4711.3,0.7291]
[1757770946701,0.1156,4711.4,4711.3,0.3097]
[1757770952329,0.1156,4711.4,4711.3,0.001]
[1757770956945,0.4299,4711.4,4711.3,0.001]
[1757770957244,0.8634,4711.4,4711.3,0.001]
[1757770961551,0.1156,4711.4,4711.3,0.3097]
[1757770962621,0.1156,4711.4,4711.3,0.001]
[1757770965356,0.4299,4711.4,4711.3,0.001]
[1757770965543,0.91743113,4711.4,4711.3,0.001]
[1757770966057,0.45113113,4711.4,4711.3,0.001]
[1757770966261,0.91743113,4711.4,4711.3,0.001]
[1757770966445,3.03994248,4711.4,4711.3,0.001]
[1757770966653,2.06241709,4711.4,4711.3,0.001]
[1757770967157,4.18492844,4711.4,4711.3,0.001]
[1757770968562,4.18692844,4711.4,4711.3,0.001]
[1757770968756,7.71392844,4711.4,4711.3,0.001]
[1757770968962,7.69269731,4711.4,4711.3,0.001]
[1757770970573,5.57018596,4711.4,4711.3,0.001]
[1757770971153,5.08208596,4711.4,4711.3,0.001]
[1757770972093,4.61578596,4711.4,4711.3,0.001]
[1757770972543,5.07148596,4711.4,4711.3,0.001]
[1757770976588,7.19399731,4711.4,4711.3,0.001]
[1757770977086,5.07148596,4711.4,4711.3,0.001]
[1757770979754,7.67849731,4711.4,4711.3,0.001]
[1757770985009,6.19280357,4711.4,4711.3,0.001]
[1757770985215,5.70830357,4711.4,4711.3,0.001]
[1757770987291,7.83081492,4711.4,4711.3,0.001]
[1757770987682,5.70830357,4711.4,4711.3,0.001]
[1757770988530,7.83081492,4711.4,4711.3,0.001]
[1757770988807,5.70830357,4711.4,4711.3,0.001]
[1757770989177,7.83081492,4711.4,4711.3,0.001]
[1757770990512,5.70830357,4711.4,4711.3,0.001]
[1757770991612,7.83081492,4711.4,4711.3,0.001]
[1757770992313,5.70830357,4711.4,4711.3,0.001]
[1757770992722,8.31531492,4711.4,4711.3,0.001]
[1757770998552,7.83081492,4711.4,4711.3,0.001]
[1757771002252,5.70830357,4711.4,4711.3,0.001]
[1757771002617,7.83081492,4711.4,4711.3,0.001]
[1757771003945,8.30181492,4711.4,4711.3,0.001]
[1757771004133,7.37511492,4711.4,4711.3,0.001]
[1757771004842,7.83121492,4711.4,4711.3,0.001]
[1757771005252,5.70870357,4711.4,4711.3,0.001]
[1757771005415,7.83121492,4711.4,4711.3,0.001]
[1757771010418,8.30221492,4711.4,4711.3,0.001]
[1757771011660,7.83121492,4711.4,4711.3,0.001]
[1757771012936,7.37511492,4711.4,4711.3,0.001]
[1757771014254,7.83121492,4711.4,4711.3,0.001]
[1757771021393,8.30221492,4711.4,4711.3,0.001]
[1757771021679,9.29235507,4711.4,4711.3,0.001]
[1757771029356,9.29202513,4711.4,4711.3,0.001]
[1757771029756,8.83592513,4711.4,4711.3,0.001]
[1757771029972,8.78942513,4711.4,4711.3,0.001]
[1757771030201,9.26492513,4711.4,4711.3,0.001]
[1757771038305,9.26489618,4711.4,4711.3,0.001]
[1757771046391,8.78939618,4711.4,4711.3,0.001]
[1757771048103,8.78955463,4711.4,4711.3,0.001]
[1757771053595,9.26505463,4711.4,4711.3,0.001]
[1757771057333,10.89405463,4711.4,4711.3,0.001]
[1757771059442,10.89423076,4711.4,4711.3,0.001]
[1757771061200,10.41873076,4711.4,4711.3,0.001]
[1757771064208,10.87393076,4711.4,4711.3,0.001]
[1757771066438,10.89133076,4711.4,4711.3,0.001]
[1757771074653,10.8913396,4711.4,4711.3,0.001]
[1757771076365,11.08944215,4711.4,4711.3,0.001]
[1757771076824,11.54586039,4711.4,4711.3,0.001]
[1757771077022,11.54583409,4711.4,4711.3,0.001]
[1757771077950,11.08941585,4711.4,4711.3,0.001]
[1757771078262,10.69321492,4711.4,4711.3,0.001]
[1757771078469,11.08932436,4711.4,4711.3,0.001]
[1757771082552,10.63062436,4711.4,4711.3,0.001]
[1757771082751,11.08932436,4711.4,4711.3,0.001]
[1757771092180,2.12260146,4711.2,4710.9,0.001]
[1757771092388,2.12269157,4711.0,4710.9,0.001]
[1757771092690,2.32074629,4711.0,4710.9,0.001]
[1757771092884,2.74114629,4711.0,4710.9,0.3025]
[1757771094184,2.76237742,4711.0,4710.9,0.3025]
[1757771097495,6.18089504,4711.0,4710.9,0.001]
[1757771097700,9.53482695,4711.0,4710.9,0.001]
[1757771097902,9.33684493,4711.0,4710.9,0.001]
[1757771098969,6.15966391,4711.0,4710.9,0.001]
[1757771100704,6.15957216,4711.0,4710.9,0.001]
[1757771101067,2.12291688,4710.5,4710.4,0.001]
[1757771101268,5.67514801,4710.5,4710.4,0.001]
[1757771101497,5.65391688,4710.5,4710.4,0.3025]
[1757771101877,6.07331688,4710.5,4710.4,0.3025]
[1757771105913,2.55031688,4710.5,4710.4,0.3025]
[1757771106226,6.09454801,4710.5,4710.4,0.3025]
[1757771106423,6.07331688,4710.5,4710.4,0.3025]
[1757771115297,2.55031688,4710.5,4710.4,0.6668]
[1757771115497,6.07231688,4710.5,4710.4,1.0862]
[1757771115698,0.4274,4710.5,4710.4,1.0862]
[1757771115996,0.008,4710.5,4710.4,1.19492]
[1757771116637,0.008,4710.5,4710.4,1.21614961]
[1757771117514,0.008,4710.5,4710.4,1.30105736]
[1757771118408,0.008,4710.5,4710.4,1.27982775]
[1757771121965,0.008,4710.5,4710.4,1.30105736]
[1757771122336,0.008,4710.5,4710.4,1.27982775]
[1757771123430,0.008,4710.5,4710.4,1.30105736]
[1757771128962,0.008,4710.5,4710.4,0.51735736]
[1757771129641,0.008,4710.5,4710.4,0.49612775]
[1757771130453,0.008,4710.5,4710.4,0.51735736]
[1757771130661,0.008,4710.5,4710.4,0.49612775]
[1757771131167,0.008,4710.5,4710.4,0.51735736]
[1757771131471,0.008,4710.5,4710.4,0.49612775]
[1757771132978,0.008,4710.5,4710.4,0.38740775]
[1757771134074,0.008,4710.5,4710.4,0.08590775]
[1757771134375,0.008,4710.5,4710.4,0.001]
[1757771135667,0.4627,4710.5,4710.4,0.001]
[1757771136872,0.1126,4710.4,4710.3,0.001]
[1757771137078,0.83283593,4710.4,4710.3,0.001]
[1757771137242,3.41989788,4710.4,4710.3,0.001]
[1757771137444,4.16809788,4710.4,4710.3,0.001]
[1757771139160,4.25302276,4710.4,4710.3,0.001]
[1757771139578,4.23179163,4710.4,4710.3,0.001]
[1757771140359,2.10882968,4710.4,4710.3,0.001]
[1757771140756,4.23179163,4710.4,4710.3,0.001]
[1757771141386,1.65412968,4710.4,4710.3,0.001]
[1757771141592,0.84952488,4710.4,4710.3,0.001]
[1757771141757,1.30422488,4710.4,4710.3,0.001]
[1757771142288,0.84012488,4710.4,4710.3,0.001]
[1757771142505,0.09192488,4710.4,4710.3,0.2865]
[1757771142961,0.09192488,4710.4,4710.3,0.001]
[1757771144675,0.38542488,4710.4,4710.3,0.001]
[1757771145096,0.84012488,4710.4,4710.3,0.001]
[1757771145388,1.30422488,4710.4,4710.3,0.001]
[1757771145561,2.97248683,4710.4,4710.3,0.001]
[1757771145773,4.30958541,4710.4,4710.3,0.001]
[1757771146804,2.18662346,4710.4,4710.3,0.001]
[1757771147000,1.27952488,4710.4,4710.3,0.001]
[1757771147880,0.38542488,4710.4,4710.3,0.001]
[1757771148915,0.81542488,4710.4,4710.3,0.001]
[1757771149090,1.28982488,4710.4,4710.3,0.001]
[1757771149813,0.09192488,4710.4,4710.3,0.001]
[1757771150012,0.09192488,4710.4,4710.3,0.312]
[1757771150616,2.93078683,4710.4,4710.3,0.001]
[1757771150822,4.05036551,4710.4,4710.3,0.001]
[1757771152115,2.12305209,4710.2,4709.9,0.001]
[1757771152414,0.006,4710.1,4709.9,0.001]
[1757771152618,0.3136,4710.0,4709.9,0.001]
[1757771152914,1.30372469,4710.0,4709.9,0.001]
[1757771153216,0.87192469,4710.0,4709.9,0.001]
[1757771153382,4.4005877,4710.0,4709.9,0.001]
[1757771153789,7.9215877,4710.0,4709.9,0.001]
[1757771155311,5.79844545,4710.0,4709.9,0.001]
[1757771156041,7.9215877,4710.0,4709.9,0.001]
[1757771156241,6.94786694,4710.0,4709.9,0.001]
[1757771160413,2.23378732,4709.9,4709.8,0.001]
[1757771160614,2.25001845,4709.9,4709.8,0.001]
[1757771160814,3.46281845,4709.9,4709.8,0.001]
[1757771161473,3.54775324,4709.9,4709.8,0.001]
[1757771164562,1.42456592,4709.9,4709.8,0.001]
[1757771164977,3.54775324,4709.9,4709.8,0.001]
[1757771165197,1.42456592,4709.9,4709.8,0.001]
[1757771165689,1.33963113,4709.9,4709.8,0.001]
[1757771166065,3.46281845,4709.9,4709.8,0.001]
[1757771166587,1.33963113,4709.9,4709.8,0.001]
[1757771166783,3.46281845,4709.9,4709.8,0.001]
[1757771170606,1.33963113,4709.9,4709.8,0.001]
[1757771170809,3.46281845,4709.9,4709.8,0.001]
[1757771171009,1.33963113,4709.9,4709.8,0.001]
[1757771171380,3.46281845,4709.9,4709.8,0.001]
[1757771173297,1.33963113,4709.9,4709.8,0.001]
[1757771173614,3.46281845,4709.9,4709.8,0.001]
[1757771174695,3.54775848,4709.9,4709.8,0.001]
[1757771182519,3.54975848,4709.9,4709.8,0.001]
[1757771187320,7.06975848,4709.9,4709.8,0.001]
[1757771187631,7.04852735,4709.9,4709.8,0.001]
[1757771190028,8.03843273,4709.9,4709.8,0.001]
[1757771190835,11.81094736,4709.9,4709.8,0.001]
[1757771192302,11.81087338,4709.9,4709.8,0.001]
[1757771194430,11.23623807,4709.9,4709.8,0.001]
[1757771194607,7.71623807,4709.9,4709.8,0.001]
[1757771194809,11.23623807,4709.9,4709.8,0.001]
[1757771195423,11.03843273,4709.9,4709.8,0.001]
[1757771195934,6.62083273,4709.9,4709.8,0.001]
[1757771196132,10.14083273,4709.9,4709.8,0.001]
[1757771196335,10.93283273,4709.9,4709.8,0.001]
[1757771196534,6.98103273,4709.9,4709.8,0.001]
[1757771196739,7.02763273,4709.9,4709.8,0.001]
[1757771196914,3.50763273,4709.9,4709.8,0.001]
[1757771197097,5.75135848,4709.9,4709.8,0.3122]
[1757771197298,5.92803273,4709.9,4709.8,0.3122]
[1757771198019,2.40803273,4709.9,4709.8,0.001]
[1757771198240,5.75135848,4709.9,4709.8,0.001]
[1757771198436,5.92803273,4709.9,4709.8,0.001]
[1757771199444,6.23253273,4709.9,4709.8,0.001]
[1757771199631,7.13753273,4709.9,4709.8,0.001]
[1757771200016,7.92953273,4709.9,4709.8,0.001]
[1757771200434,4.40953273,4709.9,4709.8,0.001]
[1757771200630,7.92953273,4709.9,4709.8,0.001]
[1757771201631,3.50453273,4709.9,4709.8,0.001]
[1757771201837,2.23135848,4709.9,4709.8,0.3122]
[1757771202032,5.94926386,4709.9,4709.8,0.3122]
[1757771202235,5.92803273,4709.9,4709.8,0.3122]
[1757771203434,5.92803273,4709.9,4709.8,0.001]
[1757771205221,6.23253273,4709.9,4709.8,0.001]
[1757771205453,7.15643273,4709.9,4709.8,0.001]
[1757771206753,6.37993273,4709.9,4709.8,0.001]
[1757771207076,6.69813273,4709.9,4709.8,0.001]
[1757771207388,7.15003273,4709.9,4709.8,0.001]
[1757771209601,6.22613273,4709.9,4709.8,0.001]
[1757771210326,5.92803273,4709.9,4709.8,0.001]
[1757771210973,2.40803273,4709.9,4709.8,0.3067]
[1757771211189,5.94926386,4709.9,4709.8,0.3067]
[1757771211483,5.92803273,4709.9,4709.8,0.3067]
[1757771212256,6.23103273,4709.9,4709.8,0.001]
[1757771212491,7.13963273,4709.9,4709.8,0.001]
[1757771214782,7.13966074,4709.9,4709.8,0.001]
[1757771215381,7.55706074,4709.9,4709.8,0.001]
[1757771215958,7.55706074,4709.9,4709.8,0.3067]
[1757771219505,7.55706074,4709.9,4709.8,0.001]
[1757771219713,7.86006074,4709.9,4709.8,0.001]
[1757771219864,8.76866074,4709.9,4709.8,0.001]
[1757771221090,7.55706074,4709.9,4709.8,0.001]
[1757771221400,7.55706074,4709.9,4709.8,0.3067]
[1757771222009,1.91387342,4709.9,4709.8,0.3067]
[1757771222192,5.23594003,4709.9,4709.8,0.3067]
[1757771222395,1.71594003,4709.9,4709.8,0.7261]